bitfinex/quotes_ETHUSD_20241223
["timestamp","ask_amount","ask_price","bid_price","bid_amount"]
[1734949018506,0.63,3350.5,3349.7,2.18038598]
[1734949018817,0.63,3350.5,3350.2,3.0]
[1734949019191,0.63,3350.5,3350.0,2.98507]
[1734949019384,0.63,3350.5,3350.1,3.0]
[1734949020725,0.63,3350.5,3349.8,4.4012686]
[1734949020921,0.63,3350.5,3349.8,2.98523]
[1734949021484,0.63,3350.5,3349.5,3.0]
[1734949021825,0.8062,3350.4,3349.7,5.98526]
[1734949022023,0.8062,3350.4,3349.2,3.58589272]
[1734949022222,0.8062,3350.4,3349.3,1.55662787]
[1734949022400,0.8062,3350.4,3349.7,2.98531]
[1734949023123,0.8062,3350.4,3349.5,2.98544]
[1734949023293,0.8062,3350.4,3349.6,2.98535]
[1734949023812,0.8062,3350.4,3349.3,1.55662787]
[1734949023988,0.8062,3350.4,3349.5,2.98543]
[1734949024183,0.8062,3350.4,3349.6,2.98534]
[1734949024622,0.8062,3350.4,3349.7,2.98526]
[1734949024819,0.8062,3350.4,3349.4,0.81571466]
[1734949024820,0.8062,3350.4,3349.8,2.98524]
[1734949025123,0.8062,3350.4,3349.9,0.298524]
[1734949025326,0.8062,3350.4,3349.6,2.98541]
[1734949026304,0.8062,3350.4,3349.7,2.98525]
[1734949026846,0.63,3350.5,3349.8,5.98858598]
[1734949027009,0.8285,3350.4,3349.7,3.0]
[1734949027409,0.8285,3350.4,3349.6,8.98]
[1734949028250,0.8285,3350.1,3349.4,0.81571466]
[1734949028437,0.8285,3350.0,3349.1,3.0]
[1734949028745,0.8285,3350.0,3349.2,0.8166336]
[1734949028951,0.8285,3350.0,3349.2,3.8166336]
[1734949029246,0.8285,3350.0,3349.2,3.8023936]
[1734949029443,0.8285,3350.0,3349.3,3.0]
[1734949030626,0.8285,3350.0,3349.2,0.8166336]
[1734949031240,0.8285,3350.0,3349.2,3.8166336]
[1734949031409,0.8285,3350.0,3349.1,2.98581]
[1734949032011,0.8285,3350.0,3349.2,2.98571]
[1734949032623,0.8285,3350.0,3349.0,0.02985543]
[1734949032624,0.8285,3350.0,3349.5,2.98549]
[1734949033316,0.8285,3350.0,3349.7,2.98526]
[1734949033523,0.823,3350.4,3349.7,2.98526]
[1734949034343,0.823,3350.4,3349.4,2.96388598]
[1734949034515,0.823,3350.4,3349.7,2.98529]
[1734949034715,0.63,3350.5,3350.0,0.7835]
[1734949034955,0.63,3350.5,3350.1,2.98491]
[1734949035156,0.63,3350.5,3349.9,2.98512]
[1734949035365,0.823,3350.4,3349.9,2.98512]
[1734949035660,0.823,3350.4,3350.0,3.361902]
[1734949036336,0.823,3350.4,3350.1,2.98498]
[1734949037428,0.823,3350.4,3350.0,0.376862]
[1734949037930,0.823,3350.4,3350.0,3.376862]
[1734949038374,0.63,3350.5,3350.0,0.376862]
[1734949038572,0.63,3350.5,3350.0,2.98505]
[1734949039137,0.63,3350.5,3349.7,1.38840306]
[1734949039138,0.625,3350.6,3350.4,2.98471]
[1734949039477,2.49854089,3351.0,3350.9,2.98427]
[1734949039773,2.49854089,3351.0,3350.9,17.14465598]
[1734949039970,2.50354089,3351.6,3351.3,2.98383]
[1734949040137,2.50354089,3351.6,3350.9,17.14465598]
[1734949040138,2.50354089,3351.6,3351.4,3.282123]
[1734949040338,2.50354089,3351.6,3351.4,0.298383]
[1734949040534,2.50354089,3351.6,3351.0,3.0]
[1734949040738,2.50354089,3351.6,3351.1,2.984]
[1734949041178,0.005,3351.6,3351.1,2.984]
[1734949041339,0.005,3351.6,3351.0,3.0]
[1734949042676,0.005,3351.6,3351.2,0.61086587]
[1734949042993,0.005,3351.6,3350.7,5.98441]
[1734949043173,0.005,3351.6,3350.8,1.7958396]
[1734949044873,0.7718,3351.5,3350.7,3.0]
[1734949045092,0.7718,3351.3,3350.6,0.59000558]
[1734949045296,3.75572,3351.3,3350.2,3.0]
[1734949045493,3.75572,3351.3,3350.3,1.83898586]
[1734949046161,0.7718,3351.3,3350.3,1.83898586]
[1734949046377,3.75572,3351.3,3350.3,1.83898586]
[1734949046583,0.7718,3351.2,3350.3,1.83898586]
[1734949047669,0.7718,3351.2,3350.4,3.84351925]
[1734949048077,0.005,3351.6,3350.8,3.7867]
[1734949048913,0.005,3351.6,3350.9,2.98425]
[1734949049402,0.7919,3351.5,3350.7,2.18038598]
[1734949049550,0.7919,3351.5,3350.5,8.98]
[1734949049756,0.7919,3351.2,3350.5,8.98]
[1734949049953,0.7969,3351.6,3350.6,0.7867]
[1734949050191,0.7969,3351.6,3350.6,3.77122]
[1734949050691,2.98867,3351.6,3350.5,8.98]
[1734949050890,0.7853,3351.5,3350.5,8.98]
[1734949051089,2.98382,3351.5,3350.5,10.7705276]
[1734949051390,0.7853,3351.5,3350.5,8.98]
[1734949051594,0.7853,3350.9,3349.7,3.42483861]
[1734949051793,0.7853,3350.5,3349.7,1.24445263]
[1734949051993,0.7853,3350.5,3349.6,1.24445263]
[1734949052198,0.7853,3350.5,3349.7,0.60517176]
[1734949052499,0.7853,3350.3,3349.7,0.60517176]
[1734949052857,0.7853,3350.1,3349.1,2.94058598]
[1734949053055,0.7853,3350.1,3349.1,2.18038598]
[1734949053812,0.7853,3350.1,3348.9,0.58355072]
[1734949054093,0.7853,3350.1,3348.7,1.24445263]
[1734949054094,3.75616,3349.6,3348.7,1.24445263]
[1734949054312,0.7707,3349.6,3348.8,0.31111316]
[1734949054611,0.59424875,3350.5,3348.3,1.24445263]
[1734949054612,0.7707,3349.3,3348.3,1.24445263]
[1734949054751,2.98593,3349.1,3348.3,1.24445263]
[1734949055590,2.98596,3349.1,3347.7,8.98]
[1734949055899,0.7707,3348.9,3347.8,3.0]
[1734949056080,0.7707,3348.9,3347.8,5.98703]
[1734949056286,0.7707,3348.9,3347.9,1.77349112]
[1734949056802,0.7707,3348.9,3348.0,3.0]
[1734949057460,0.7707,3348.9,3347.9,1.77349112]
[1734949057959,3.75677,3348.9,3347.9,1.77349112]
[1734949058305,2.98615,3348.8,3347.9,1.77349112]
[1734949058468,2.98623,3348.7,3347.9,1.77349112]
[1734949059290,0.7707,3348.9,3348.0,0.7126877]
[1734949059589,0.7707,3348.9,3348.0,3.7126877]
[1734949060174,0.7707,3348.9,3348.1,0.029865]
[1734949060490,0.792,3349.8,3348.6,2.98632]
[1734949060793,0.792,3349.8,3348.6,3.01617924]
[1734949060980,0.792,3349.8,3348.7,0.51965652]
[1734949061689,2.98543,3349.6,3348.5,0.60392186]
[1734949061901,0.792,3349.8,3348.5,3.60392186]
[1734949062901,0.792,3349.8,3348.5,6.59025186]
[1734949063187,0.792,3349.8,3348.6,0.02985966]
[1734949063560,3.77727,3349.8,3348.6,3.02985966]
[1734949063822,3.77727,3349.8,3348.7,0.66201815]
[1734949065014,0.792,3349.8,3348.9,2.98605]
[1734949065517,0.792,3349.8,3348.8,3.0]
[1734949066591,0.792,3349.8,3348.9,2.98605]
[1734949066978,0.792,3349.8,3348.7,0.66201815]
[1734949067177,0.792,3349.8,3348.8,3.66482681]
[1734949067913,0.8148,3350.0,3348.8,0.66482681]
[1734949068122,0.8148,3350.0,3348.5,3.0]
[1734949068123,0.8148,3349.5,3348.5,3.0]
[1734949069312,0.8148,3349.5,3348.5,5.9864]
[1734949071071,0.8148,3349.5,3348.5,3.0]
[1734949071273,3.80033,3349.5,3348.4,3.0]
[1734949071487,3.80033,3349.5,3348.5,0.675321]
[1734949071967,0.8148,3349.5,3348.5,3.675321]
[1734949072166,0.8148,3349.5,3348.6,3.0]
[1734949073421,2.98517,3349.9,3348.7,0.8333]
[1734949073640,0.8029,3349.8,3348.8,3.15384804]
[1734949074302,0.55,3349.7,3348.2,2.98667]
[1734949074504,2.9857,3349.3,3348.2,2.98667]
[1734949074666,0.8102,3349.2,3348.2,2.98667]
[1734949074865,0.8102,3349.2,3348.0,9.6926877]
[1734949075093,0.8102,3349.2,3348.2,2.98667]
[1734949075307,0.8102,3349.2,3348.3,1.27092192]
[1734949076711,0.8102,3349.2,3348.4,2.98641]
[1734949077487,0.8102,3349.2,3348.4,0.81606151]
[1734949077687,0.8102,3349.2,3348.6,2.98631]
[1734949078010,0.8102,3349.2,3348.5,3.0]
[1734949078209,0.8102,3349.2,3348.3,1.27092192]
[1734949078210,0.8289,3349.1,3348.3,1.27092192]
[1734949078614,0.7716,3349.0,3348.0,9.6926877]
[1734949078821,2.98614,3348.8,3348.0,0.7126877]
[1734949078992,0.7716,3348.7,3348.0,0.7126877]
[1734949080619,0.7716,3348.7,3348.0,2.98682]
[1734949080795,0.7716,3348.7,3348.0,2.98677]
[1734949080997,0.7716,3348.7,3348.1,2.98675]
[1734949081397,0.7716,3348.7,3347.6,3.0]
[1734949081597,0.7716,3348.7,3348.2,2.98663]
[1734949081919,0.7716,3348.7,3348.3,0.379983]
[1734949082121,1.3094,3349.5,3348.5,2.98638]
[1734949082325,0.7594,3349.4,3348.5,2.98638]
[1734949082694,0.7594,3349.4,3348.4,3.0]
[1734949083019,0.7818,3349.4,3348.4,3.7179763]
[1734949083234,2.98594,3349.1,3347.9,11.96694]
[1734949083520,0.7871,3349.0,3348.0,3.0]
[1734949083722,0.7871,3349.0,3348.1,2.98676]
[1734949084330,0.7871,3349.0,3348.0,3.27725213]
[1734949084484,0.7871,3349.0,3348.5,2.98639]
[1734949084685,0.7871,3349.0,3348.3,3.01642241]
[1734949084939,0.7871,3349.0,3348.2,0.27725213]
[1734949085093,0.7871,3349.0,3348.4,0.27725213]
[1734949085503,3.75379,3348.9,3348.4,0.27725213]
[1734949085682,0.7677,3348.8,3347.9,8.98]
[1734949085887,0.7677,3348.8,3348.1,2.98668]
[1734949086327,0.7677,3348.8,3348.4,2.98649]
[1734949086922,0.7677,3348.8,3348.2,0.27732835]
[1734949087096,0.7677,3348.8,3348.2,3.0]
[1734949087715,0.7677,3348.8,3348.3,0.27732384]
[1734949088248,3.78839,3348.7,3348.3,0.27732384]
[1734949088454,0.8021,3348.6,3348.3,0.27732384]
[1734949088609,0.8021,3348.6,3347.6,3.0]
[1734949089147,0.8021,3348.6,3347.8,3.0]
[1734949089494,0.8021,3348.6,3347.7,0.27739285]
[1734949089802,0.8021,3348.6,3347.9,2.98689]
[1734949090020,0.8021,3348.6,3347.8,1.50313214]
[1734949090227,0.8021,3348.6,3348.2,2.98666]
[1734949090551,0.8021,3348.6,3348.0,0.813]
[1734949090713,0.7984,3349.3,3348.3,0.27739285]
[1734949091229,0.7984,3349.3,3348.4,0.27739285]
[1734949091609,2.98578,3349.3,3348.4,0.27739285]
[1734949091927,0.768,3349.1,3348.4,0.27739285]
[1734949092123,0.768,3349.1,3348.4,0.62641529]
[1734949092632,0.768,3349.1,3348.2,3.0]
[1734949092808,0.768,3349.1,3348.7,2.98617]
[1734949093836,0.768,3349.1,3348.8,0.2771784]
[1734949094706,0.8209,3349.0,3348.1,8.98]
[1734949095223,0.8209,3349.0,3348.2,0.02986347]
[1734949095424,0.8209,3349.0,3348.7,2.98615]
[1734949095707,0.8209,3349.0,3348.5,2.98641]
[1734949096136,0.8209,3349.0,3348.7,2.98623]
[1734949096705,0.8266,3349.8,3348.6,0.27723387]
[1734949097003,0.8266,3349.8,3348.7,0.8055]
[1734949097202,0.8266,3349.8,3348.7,1.11259277]
[1734949097983,0.8266,3349.8,3348.9,2.98597]
[1734949098193,0.8266,3349.8,3348.9,3.01582711]
[1734949098482,0.8266,3349.8,3349.0,0.27723387]
[1734949099031,0.8054,3349.7,3348.8,3.70989428]
[1734949099658,0.8054,3349.7,3348.8,3.69603428]
[1734949099859,2.49854089,3349.9,3348.5,3.7772]
[1734949099860,2.98548,3349.6,3348.5,3.0]
[1734949100044,0.8157,3349.4,3348.5,3.0]
[1734949100453,0.8157,3349.7,3348.4,8.98]
[1734949100635,0.8157,3349.1,3348.2,2.98665]
[1734949101073,0.8157,3349.1,3348.1,1.24445263]
[1734949101316,0.8187,3349.0,3348.2,1.50779716]
[1734949101442,0.8187,3349.0,3348.2,1.78514508]
[1734949102290,0.8187,3348.9,3348.0,3.0]
[1734949102490,0.8187,3348.9,3347.9,8.98]
[1734949102702,0.8187,3348.9,3347.9,11.96691]
[1734949102907,0.8187,3348.9,3348.0,0.27739971]
[1734949103068,0.8187,3348.9,3348.0,1.56054761]
[1734949103568,0.8187,3348.9,3348.1,3.26414971]
[1734949103952,0.8187,3348.9,3348.2,2.98665]
[1734949104400,0.8187,3348.9,3348.4,2.98646]
[1734949104704,0.8187,3348.9,3348.5,2.98637]
[1734949105000,0.8187,3348.9,3348.6,3.284937]
[1734949105208,0.8187,3348.9,3348.5,3.0]
[1734949105715,0.8187,3348.9,3348.6,0.27733426]
[1734949106378,0.8187,3348.9,3348.4,3.26381426]
[1734949107015,0.8187,3348.9,3348.3,3.0]
[1734949107152,0.8187,3348.9,3348.3,1.62631479]
[1734949107512,0.8187,3348.9,3348.3,4.61281479]
[1734949108171,0.8187,3348.9,3347.8,1.24445263]
[1734949108524,0.7735,3348.5,3348.4,0.27727734]
[1734949109074,2.98669,3348.2,3347.9,0.27727734]
[1734949109271,2.98629,3348.7,3347.9,0.27727734]
[1734949109272,0.7735,3348.1,3347.9,0.27727734]
[1734949109584,0.7735,3348.1,3347.3,1.24445263]
[1734949109799,0.7735,3348.1,3347.4,0.66930229]
[1734949110170,1.3383,3348.5,3347.3,1.24445263]
[1734949110377,0.7883,3347.9,3346.6,13.21246263]
[1734949110723,0.7883,3347.9,3347.0,0.5974426]
[1734949110724,0.7576,3347.8,3347.0,0.5974426]
[1734949111275,0.7576,3347.7,3347.0,0.5974426]
[1734949112480,0.7576,3347.7,3347.1,2.98761]
[1734949112685,0.7576,3347.7,3347.2,0.35850526]
[1734949113534,0.7576,3347.7,3347.0,3.5851826]
[1734949113732,0.7576,3347.7,3347.0,3.61505621]
[1734949113929,0.7576,3347.7,3347.0,2.98774]
[1734949114991,0.7576,3347.7,3346.7,3.0]
[1734949115374,0.7576,3347.7,3346.6,3.0]
[1734949115579,0.7576,3347.7,3346.7,1.198]
[1734949115779,0.7793,3347.6,3346.7,1.198]
[1734949116538,0.7793,3347.5,3346.6,3.0]
[1734949116697,0.7793,3347.5,3347.3,2.98743]
[1734949116881,2.49854089,3348.1,3346.8,12.73892]
[1734949117083,0.7793,3348.0,3347.0,2.98771]
[1734949117320,0.7793,3348.0,3346.8,9.751]
[1734949117321,0.7793,3348.0,3347.2,2.98756]
[1734949117477,0.7793,3348.0,3347.3,0.3017432]
[1734949117984,0.7793,3348.0,3347.4,0.02987265]
[1734949118185,0.7793,3348.4,3347.7,2.98712]
[1734949119184,0.7793,3348.4,3347.5,0.771]
[1734949119396,0.7793,3348.4,3347.6,2.98713]
[1734949119619,0.7793,3348.4,3347.7,0.675813]
[1734949119783,0.7793,3348.4,3347.7,3.662903]
[1734949121104,0.7793,3348.4,3347.7,2.98709]
[1734949122863,0.7793,3348.4,3347.5,3.0]
[1734949123161,0.7793,3348.4,3347.6,2.9872]
[1734949123361,0.7793,3348.4,3347.9,2.98693]
[1734949124158,0.7793,3348.4,3348.0,0.02986783]
[1734949124342,0.8209,3349.2,3348.1,2.98668]
[1734949124656,0.8209,3349.2,3347.9,0.79]
[1734949124657,2.98613,3348.9,3347.8,2.98696]
[1734949124861,0.55,3349.0,3347.4,3.0]
[1734949125002,2.9865,3348.4,3347.4,3.0]
[1734949125208,0.8209,3348.3,3347.5,0.598747]
[1734949126509,0.8209,3348.3,3347.1,8.98]
[1734949126734,0.8209,3348.3,3347.2,2.98756]
[1734949127224,0.8103,3348.2,3347.2,2.98756]
[1734949128779,0.8103,3348.2,3347.2,3.0]
[1734949128978,0.8103,3348.2,3347.8,2.987]
[1734949129282,0.8103,3348.2,3347.9,0.2987]
[1734949129620,0.827,3348.6,3347.9,2.98693]
[1734949129823,0.827,3348.6,3347.7,3.0]
[1734949130076,0.827,3348.6,3347.9,3.74244]
[1734949130221,0.827,3348.6,3347.9,0.7555]
[1734949130419,0.827,3348.6,3348.2,2.98665]
[1734949132831,0.8083,3349.0,3348.5,2.18038598]
[1734949133186,0.8083,3349.4,3348.9,2.98605]
[1734949133399,0.8083,3349.4,3348.7,2.98622]
[1734949135702,0.8083,3349.4,3348.5,2.98641]
[1734949135991,0.8083,3349.4,3348.2,0.7543]
[1734949136132,0.7718,3349.3,3348.3,2.98654]
[1734949139054,3.79401,3349.2,3348.1,3.0]
[1734949139257,0.8082,3349.1,3348.1,5.98674]
[1734949140152,0.8082,3349.1,3348.2,2.98663]
[1734949140496,0.8082,3349.1,3348.2,3.622848]
[1734949140901,0.8082,3349.1,3348.2,0.636218]
[1734949141112,0.8082,3349.1,3348.1,3.0]
[1734949141255,2.98616,3348.8,3347.7,2.98704]
[1734949141453,0.7696,3348.7,3347.5,0.7841]
[1734949141699,0.7696,3348.7,3347.6,0.02986595]
[1734949142071,0.7696,3348.7,3347.9,2.9869]
[1734949142402,0.7696,3348.7,3348.0,0.29869]
[1734949144227,0.7696,3348.7,3348.1,0.02986595]
[1734949144366,0.7696,3348.7,3348.0,3.29869]
[1734949144367,0.7696,3348.7,3348.4,2.98647]
[1734949144817,0.7794,3349.3,3348.5,3.0]
[1734949145225,0.7794,3349.2,3348.0,3.29869]
[1734949145519,0.7968,3349.1,3348.1,0.6238876]
[1734949146421,0.7968,3349.1,3348.3,2.98657]
[1734949147388,0.7968,3349.1,3348.4,2.98648]
[1734949147573,0.7968,3349.1,3348.5,2.9864]
[1734949149143,0.7804,3349.5,3348.6,0.02986135]
[1734949149274,0.7804,3349.5,3349.0,2.98595]
[1734949149472,0.7804,3349.5,3348.7,0.7887]
[1734949149701,0.7804,3349.5,3349.1,2.98585]
[1734949150506,0.7804,3349.5,3348.8,0.27623554]
[1734949150821,0.7804,3349.5,3348.7,0.7887]
[1734949150972,0.7804,3349.5,3348.7,2.98614]
[1734949151173,0.7804,3349.5,3348.6,3.52102473]
[1734949151423,0.7804,3349.5,3348.6,3.0]
[1734949152088,0.7804,3349.5,3348.2,3.0]
[1734949152294,0.7804,3349.5,3348.6,2.9863]
[1734949153282,0.812,3349.4,3348.4,3.0]
[1734949153500,0.812,3349.2,3348.2,2.98667]
[1734949153831,0.812,3349.2,3348.3,1.25905576]
[1734949155023,2.98588,3349.1,3348.1,9.6038876]
[1734949155230,0.7633,3349.0,3348.1,9.6038876]
[1734949155442,0.7633,3349.0,3348.7,2.98617]
[1734949155742,0.7633,3349.2,3348.5,0.7794]
[1734949155941,0.7562,3349.5,3348.8,3.0298597]
[1734949156149,0.7562,3349.5,3349.2,2.9857]
[1734949156346,0.7562,3349.5,3349.3,2.98569]
[1734949156715,2.49854089,3349.6,3349.5,2.98552]
[1734949157005,0.7562,3350.2,3349.5,2.98552]
[1734949157311,2.4974899,3350.7,3349.5,2.98552]
[1734949157312,2.4974899,3350.7,3350.6,5.98454]
[1734949157539,1.06e-06,3350.8,3350.7,5.98445]
[1734949158034,1.06e-06,3350.8,3350.5,8.98]
[1734949158262,1.06e-06,3350.8,3349.3,0.30180246]
[1734949158263,1.06e-06,3350.8,3350.0,8.98]
[1734949158534,1.06e-06,3350.8,3349.3,3.0]
[1734949158535,0.785,3350.6,3349.4,1.24445263]
[1734949159038,0.25,3351.3,3349.4,1.24445263]
[1734949159221,0.58276276,3349.5,3349.4,1.24445263]
[1734949159410,1.36776276,3349.5,3349.4,1.24445263]
[1734949159610,3.0,3349.3,3348.3,1.24445263]
[1734949159933,0.814,3349.1,3348.3,1.24445263]
[1734949160338,0.59053293,3348.4,3348.3,1.24445263]
[1734949160636,0.814,3349.9,3348.3,3.42483861]
[1734949160934,0.814,3349.9,3348.4,0.02985778]
[1734949161136,0.814,3349.9,3348.5,2.98639]
[1734949161295,0.8331,3349.9,3348.1,0.6238876]
[1734949161495,0.25,3350.7,3348.1,0.6238876]
[1734949161496,0.25,3350.1,3348.1,1.24445263]
[1734949161742,0.8331,3349.3,3348.1,1.24445263]
[1734949162246,0.59878126,3348.2,3348.1,1.24445263]
[1734949162396,0.59878126,3348.2,3347.7,11.16038598]
[1734949162595,0.7515,3349.3,3347.8,1.1967586]
[1734949162792,0.60577442,3348.9,3347.9,0.02986498]
[1734949163019,0.60577442,3348.9,3347.8,1.1967586]
[1734949163235,0.8235,3348.8,3347.8,4.1967586]
[1734949163604,0.8235,3348.8,3347.8,7.1837086]
[1734949163939,0.8235,3348.8,3347.9,4.91512946]
[1734949164440,0.8235,3348.8,3347.9,7.90201946]
[1734949164737,0.8313,3350.3,3348.7,3.7654]
[1734949164935,0.8313,3350.3,3348.7,6.75162]
[1734949165096,0.8118,3350.2,3348.8,0.8932006]
[1734949165624,0.8118,3350.0,3348.8,3.8792806]
[1734949165800,0.8118,3350.0,3348.9,3.0]
[1734949166139,0.8118,3350.0,3348.8,3.8792806]
[1734949166140,0.8118,3350.0,3348.8,0.8932006]
[1734949166294,0.8118,3350.0,3348.7,0.7654]
[1734949167125,0.8118,3350.0,3348.7,3.75158]
[1734949167396,0.8118,3350.0,3349.2,3.0]
[1734949167601,0.8118,3350.0,3349.0,2.98589]
[1734949167816,0.8118,3350.0,3349.1,3.02985255]
[1734949168136,0.8118,3350.0,3349.2,0.90157426]
[1734949168324,0.8118,3350.0,3349.2,3.90157426]
[1734949168718,0.8118,3350.0,3349.2,3.93142682]
[1734949169103,0.15588185,3349.9,3349.2,3.93142682]
[1734949169304,0.15588185,3349.9,3349.3,0.7745]
[1734949169505,0.15588185,3349.9,3349.4,0.47059268]
[1734949170044,0.15588185,3349.9,3349.2,0.90157426]
[1734949170206,0.15588185,3349.9,3349.2,3.90157426]
[1734949170407,0.15588185,3349.9,3349.4,3.0]
[1734949170611,0.15588185,3349.9,3349.5,3.0]
[1734949171519,0.15588185,3349.9,3349.6,3.0]
[1734949171722,0.05802539,3350.9,3349.7,0.3]
[1734949171925,0.005,3351.6,3351.1,2.98404]
[1734949172127,0.005,3351.6,3350.6,3.7705]
[1734949172309,0.005,3351.6,3350.4,11.98]
[1734949172510,0.005,3351.6,3350.0,3.0]
[1734949172815,0.60173572,3351.2,3350.1,3.0]
[1734949173029,0.60173572,3351.2,3350.2,0.37705]
[1734949173230,0.60173572,3351.2,3349.7,8.98]
[1734949173231,0.60173572,3351.2,3349.6,0.7705]
[1734949173539,0.005,3351.6,3350.1,2.54552625]
[1734949173540,2.98421,3351.0,3350.1,2.54552625]
[1734949173741,0.005,3351.6,3350.1,2.54552625]
[1734949173945,2.98399,3351.3,3350.1,2.54552625]
[1734949174166,0.005,3351.6,3350.2,3.02984855]
[1734949174365,0.005,3351.6,3350.3,0.75887274]
[1734949174588,0.60036053,3351.5,3350.6,3.0]
[1734949175243,0.005,3351.6,3350.7,0.7689]
[1734949175457,0.005,3351.6,3350.8,3.02983566]
[1734949175770,0.005,3351.6,3350.9,2.79735407]
[1734949176069,0.005,3351.6,3351.0,0.68392527]
[1734949176255,0.005,3351.6,3350.9,1.03686298]
[1734949176837,0.005,3351.6,3350.9,0.7937]
[1734949177038,0.826,3351.8,3351.1,3.0]
[1734949177948,0.826,3351.8,3350.6,3.02983831]
[1734949178147,0.826,3351.8,3350.6,3.0]
[1734949178470,0.15580059,3351.7,3350.7,0.02983921]
[1734949178673,0.15580059,3351.7,3351.0,3.0]
[1734949178877,0.005,3351.8,3351.1,0.7663]
[1734949180461,0.005,3351.8,3351.2,9.00983458]
[1734949180667,0.005,3351.8,3351.1,0.7663]
[1734949180668,0.005,3351.8,3351.4,3.0]
[1734949180879,0.005,3351.8,3351.5,1.198]
[1734949182086,0.005,3351.8,3351.7,11.98]
[1734949183041,0.005,3351.8,3351.6,3.8065]
[1734949183882,0.005,3351.8,3351.6,12.7865]
[1734949184385,0.005,3351.8,3351.6,3.8065]
[1734949184581,0.005,3351.8,3351.7,1.45834992]
[1734949185249,0.005,3351.8,3351.5,4.198]
[1734949185458,0.005,3351.8,3351.5,1.198]
[1734949185990,0.005,3351.8,3351.0,9.56359191]
[1734949187149,0.005,3351.8,3350.9,2.79735407]
[1734949187482,0.7698,3351.7,3350.9,2.79735407]
[1734949187883,0.7698,3351.7,3350.5,2.79735407]
[1734949189245,0.7698,3351.7,3350.5,2.82719358]
[1734949189447,0.7698,3351.7,3351.1,8.98]
[1734949189871,0.7698,3351.7,3351.0,8.98]
[1734949190044,0.7698,3351.7,3351.0,3.0]
[1734949192653,0.005,3351.8,3351.0,3.0]
[1734949193083,0.005,3351.8,3351.2,3.0]
[1734949193394,0.005,3351.8,3351.5,3.0]
[1734949193687,0.005,3351.8,3351.7,8.78091407]
[1734949195170,1e-05,3351.8,3351.7,17.76091407]
[1734949195353,1e-05,3351.8,3351.7,18.52141407]
[1734949196052,1e-05,3351.8,3351.7,12.7405]
[1734949196306,0.58630947,3354.1,3353.1,3.21268268]
[1734949196511,2.98108,3354.5,3353.1,0.23038268]
[1734949196655,0.01961732,3354.9,3352.9,0.23038268]
[1734949196857,0.01961732,3354.9,3352.7,0.23038268]
[1734949197052,2.98185,3353.7,3352.7,0.23038268]
[1734949197357,2.98107,3354.5,3352.7,0.23038268]
[1734949197558,2.98189,3353.6,3352.7,0.23038268]
[1734949198206,2.98219,3353.3,3352.5,0.23038268]
[1734949198409,5.9623,3354.4,3352.2,3.0]
[1734949198410,2.98234,3353.1,3352.2,0.23038268]
[1734949198705,0.55,3353.3,3352.2,0.23038268]
[1734949198906,2.98234,3353.1,3351.9,0.23038268]
[1734949199113,0.55,3353.5,3352.1,0.23038268]
[1734949199404,0.7977,3353.2,3352.1,0.23038268]
[1734949199987,0.7977,3353.2,3351.8,0.38770995]
[1734949199988,0.8294,3352.8,3352.2,0.24231635]
[1734949200192,4.36242,3352.3,3352.2,0.24231635]
[1734949200400,1.3794,3352.3,3352.2,0.24231635]
[1734949200569,0.8294,3352.3,3351.6,0.23038268]
[1734949200770,0.8294,3352.6,3352.2,0.23038268]
[1734949200992,0.8294,3352.6,3351.9,0.23038268]
[1734949201995,0.8294,3352.6,3352.4,0.23038268]
[1734949202182,0.8294,3352.6,3352.1,0.23038268]
[1734949202583,0.8294,3352.6,3352.2,0.24287325]
[1734949202786,2.98195,3353.5,3352.2,0.24287325]
[1734949202994,0.25,3354.3,3352.2,0.47325593]
[1734949202995,0.7814,3353.2,3352.2,0.47325593]
[1734949203212,0.7814,3353.1,3352.3,0.24287325]
[1734949203362,0.7814,3353.5,3352.3,0.24287325]
[1734949203566,0.7851,3352.7,3352.3,0.24287325]
[1734949204079,0.7851,3352.7,3351.7,2.39945373]
[1734949204497,0.7851,3352.7,3351.8,0.24330021]
[1734949204808,0.7851,3352.7,3351.8,3.24330021]
[1734949205269,0.7851,3352.7,3352.0,0.23038268]
[1734949205912,0.7851,3352.7,3352.1,0.24330021]
[1734949206119,3.75521,3352.2,3352.1,0.24330021]
[1734949206416,1.3221,3352.2,3352.1,0.24330021]
[1734949206562,0.7721,3352.2,3351.2,0.23038268]
[1734949206934,0.7721,3352.5,3351.9,0.23038268]
[1734949207209,0.7721,3352.5,3352.1,0.23038268]
[1734949207575,0.7721,3352.5,3351.5,0.7743]
[1734949207576,0.7721,3352.5,3352.2,0.23038268]
[1734949207965,0.7721,3353.1,3352.5,0.23038268]
[1734949208250,0.7721,3353.7,3352.9,0.23038268]
[1734949208708,0.7721,3353.7,3353.2,0.23038268]
[1734949208913,0.7721,3353.7,3353.5,0.23038268]
[1734949209213,1.38333919,3354.3,3353.5,0.23038268]
[1734949209528,0.7721,3354.3,3353.6,0.23038268]
[1734949209730,0.7721,3354.3,3353.8,0.23038268]
[1734949210789,2.98081,3354.8,3353.8,0.23038268]
[1734949211023,0.7582,3354.8,3353.8,0.23038268]
[1734949211318,2.98108,3354.5,3353.8,0.23038268]
[1734949211523,0.7582,3354.8,3353.8,0.23038268]
[1734949211664,2.98127,3354.3,3353.8,0.23038268]
[1734949212096,0.9504704,3355.3,3354.4,0.23038268]
[1734949212300,0.9504704,3355.3,3354.8,0.23038268]
[1734949213015,0.9504704,3355.3,3354.6,0.23038268]
[1734949214171,3.9308404,3355.3,3354.6,0.23038268]